{"text_format":"1","workbook":"xlsx","n_sheets":3,"sheets":["БАЗА","50","100"],"not_rendered":{"charts":0,"images":0,"macros":1,"external_links":1,"defined_names":3,"comments":1,"pivot_tables":0},"unopened":[],"bounds":{"document_bytes":16777216,"sheet_cells":100000,"rows_first":2000,"rows_last":500,"rows_between":2000,"halvings":0,"cell_chars":16384,"cell_head_chars":4096},"cells_cut":0,"cells_raw":0,"read":"whole","date_system":"1900"}

{"sheet":"БАЗА","index":0,"n_rows":26,"n_cols":41,"rows_kept":26,"cut":false,"hidden":false,"merged":[[3,25,3,26],[3,15,3,16],[3,17,3,18],[3,19,3,20],[3,21,3,22],[3,23,3,24],[0,32,2,32],[0,33,0,34],[0,37,1,38],[0,39,2,39],[1,11,1,13],[1,15,1,18],[1,19,1,22],[1,23,1,26],[1,33,1,34],[1,36,2,36],[0,27,1,28],[2,21,2,22],[2,23,2,24],[2,25,2,26],[0,8,2,8],[0,9,1,9],[0,10,2,10],[0,11,0,13],[0,15,0,25],[2,15,2,16],[2,17,2,18],[2,19,2,20],[0,7,2,7],[0,1,2,1],[0,2,2,2],[0,3,2,3],[0,4,2,4],[0,6,2,6]]}
[null,"Индивидуальный № Я/К","Полное наименование клиента","Адрес и ","номер телефона",null,"№ и дата договора         ","Периодичность обслуживания","Индивидуальный № Объекта","Закрепленные сумки","Номер расчетного счета клиента","№№",null,null,"Отделение ОАО \"Сбербанка России\" транзитного клиента","В р е м я      о б с л у ж и в а н и я, мин.",null,null,null,null,null,null,null,null,null,null,null,"Режим работы",null,"Руководитель",null,null,"Индивидуальный № (Я/К)","Хозорганы,",null,null,null,"Количество сумок",null,"Действующие договоры"]
[null,null,null,null,null,null,null,null,null,null,null,"маршрутов",null,null,null,"б/д",null,null,null,"сб",null,null,null,"вс",null,null,null,null,null,null,null,null,null,"из них",null,null,"Явочные карточки приостановивших инкассацию",null,null,null,"Количество сумок"]
[null,null,null,null,null,"Для Схем следования на объекты",null,null,null,"Кол-во",null,"б/д","сб","вс",null,"начало",null,"конец",null,"начало",null,"конец",null,"начало",null,"конец",null,"часы","минуты","1, 8, 13 - № 80;      2 - № 81;      3, 9, 14 - № 82;   5, 11, 12 - № 83; 4, 10 - № 84","Взаимодействие в рабочем порядке в лице","ИНО \"Мегафон-Ритейл\"",null,"Свои","\"Транзитные\"","Явочные карточки действующих",null,"Филиалы","Доставка",null,"на объектах"]
[null,1,2,3,null,null,4,5,null,6,8,9,10,11,12,13,null,14,null,15,null,16,null,17,null,18,null,19,20,21,null,22,1,24,25,26,null,27,28,29,30]
[1,{"$f":"I5","v":42725},"ЗАО \"Торговый дом \"ПЕРЕКРЕСТОК\" Маг"," г. Коломна, ул. Фрунзе, д. 47","8 964-775-89-56",null,null,"ежедневно",42725,"одноразовые средства упаковки","`40702810338040101099",208,208,208,"в Тверском отделении № 7982 ОАО \"Сбербанк России\"",20,"`00",21,"`00",19,30,20,30,19,30,20,30,22,"`00"]
[2,42726,"ЗАО \"Торговый дом \"ПЕРЕКРЕСТОК\" Маг №1"," г. Коломна, ул. Фрунзе, д. 48","9 964-775-89-56",null,null,"ежедневно",42726,"многоразовые средства упаковки","`40702810338040101099",208,208,208,"в Тверском отделении № 7982 ОАО \"Сбербанк России\"",21,"`01",22,"`01",19,30,20,30,19,30,20,30,22,"`01"]
[3,42727,"ЗАО \"Торговый дом \"ПЕРЕКРЕСТОК\" Маг №2"," г. Коломна, ул. Фрунзе, д. 49","10 964-775-89-56",null,null,"ежедневно",42727,5,"`40702810338040101099",208,208,208,"в Тверском отделении № 7982 ОАО \"Сбербанк России\"",22,"`02",23,"`02",19,30,20,30,19,30,20,30,22,"`02"]
[4,42728,"ЗАО \"Торговый дом \"ПЕРЕКРЕСТОК\" Маг №3"," г. Коломна, ул. Фрунзе, д. 50","11 964-775-89-56",null,null,"ежедневно",42728,6,"`40702810338040101099",208,208,208,"в Тверском отделении № 7982 ОАО \"Сбербанк России\"",23,"`03",24,"`03",19,30,20,30,19,30,20,30,22,"`03"]
[5,42729,"ЗАО \"Торговый дом \"ПЕРЕКРЕСТОК\" Маг №4"," г. Коломна, ул. Фрунзе, д. 51","12 964-775-89-56",null,null,"ежедневно",42729,7,"`40702810338040101099",208,208,208,"в Тверском отделении № 7982 ОАО \"Сбербанк России\"",24,"`04",25,"`04",19,30,20,30,19,30,20,30,22,"`04"]
[6,42730,"ЗАО \"Торговый дом \"ПЕРЕКРЕСТОК\" Маг №5"," г. Коломна, ул. Фрунзе, д. 52","13 964-775-89-56",null,null,"ежедневно",42730,8,"`40702810338040101099",208,208,208,"в Тверском отделении № 7982 ОАО \"Сбербанк России\"",25,"`05",26,"`05",19,30,20,30,19,30,20,30,22,"`05"]
[7,42731,"ЗАО \"Торговый дом \"ПЕРЕКРЕСТОК\" Маг №6"," г. Коломна, ул. Фрунзе, д. 53","14 964-775-89-56",null,null,"ежедневно",42731,9,"`40702810338040101099",208,208,208,"в Тверском отделении № 7982 ОАО \"Сбербанк России\"",26,"`06",27,"`06",19,30,20,30,19,30,20,30,22,"`06"]
[8,42732,"ЗАО \"Торговый дом \"ПЕРЕКРЕСТОК\" Маг №7"," г. Коломна, ул. Фрунзе, д. 54","15 964-775-89-56",null,null,"ежедневно",42732,10,"`40702810338040101099",208,208,208,"в Тверском отделении № 7982 ОАО \"Сбербанк России\"",27,"`07",28,"`07",19,30,20,30,19,30,20,30,22,"`07"]
[9,42733,"ЗАО \"Торговый дом \"ПЕРЕКРЕСТОК\" Маг №8"," г. Коломна, ул. Фрунзе, д. 55","16 964-775-89-56",null,null,"ежедневно",42733,11,"`40702810338040101099",208,208,208,"в Тверском отделении № 7982 ОАО \"Сбербанк России\"",28,"`08",29,"`08",19,30,20,30,19,30,20,30,22,"`08"]
[10,42734,"ЗАО \"Торговый дом \"ПЕРЕКРЕСТОК\" Маг №9"," г. Коломна, ул. Фрунзе, д. 56","17 964-775-89-56",null,null,"ежедневно",42734,12,"`40702810338040101099",208,208,208,"в Тверском отделении № 7982 ОАО \"Сбербанк России\"",29,"`09",30,"`09",19,30,20,30,19,30,20,30,22,"`09"]
[11,42735,"ЗАО \"Торговый дом \"ПЕРЕКРЕСТОК\" Маг №10"," г. Коломна, ул. Фрунзе, д. 57","18 964-775-89-56",null,null,"ежедневно",42735,13,"`40702810338040101099",208,208,208,"в Тверском отделении № 7982 ОАО \"Сбербанк России\"",30,"`10",31,"`10",19,30,20,30,19,30,20,30,22,"`10"]
[12,42736,"ЗАО \"Торговый дом \"ПЕРЕКРЕСТОК\" Маг №11"," г. Коломна, ул. Фрунзе, д. 58","19 964-775-89-56",null,null,"ежедневно",42736,14,"`40702810338040101099",208,208,208,"в Тверском отделении № 7982 ОАО \"Сбербанк России\"",31,"`11",32,"`11",19,30,20,30,19,30,20,30,22,"`11"]
[13,null,null,null,null,null,null,null,null,"одноразовые средства упаковки"]
[14,null,null,null,null,null,null,null,null,"одноразовые средства упаковки"]
[15,null,null,null,null,null,null,null,null,"одноразовые средства упаковки"]
[16,null,null,null,null,null,null,null,null,"одноразовые средства упаковки"]
[17,null,null,null,null,null,null,null,null,"одноразовые средства упаковки"]
[18,null,null,null,null,null,null,null,null,"одноразовые средства упаковки"]
[19,null,null,null,null,null,null,null,null,"одноразовые средства упаковки"]
[20,null,null,null,null,null,null,null,null,"одноразовые средства упаковки"]
[21,null,null,null,null,null,null,null,null,"одноразовые средства упаковки"]
[22,null,null,null,null,null,null,null,null,"одноразовые средства упаковки"]

{"sheet":"50","index":1,"n_rows":54,"n_cols":31,"rows_kept":54,"cut":false,"hidden":false,"merged":[[53,0,53,28],[48,0,49,6],[49,12,49,16],[49,17,49,20],[49,21,49,23],[52,5,52,28],[50,0,50,6],[50,12,50,16],[50,17,50,20],[50,21,50,23],[51,0,51,6],[51,12,51,16],[51,17,51,20],[51,21,51,23],[45,0,45,1],[45,2,45,8],[45,9,45,28],[46,0,46,28],[47,0,47,6],[34,21,34,24],[35,25,35,26],[35,27,35,28],[36,12,36,19],[37,6,37,20],[37,21,38,28],[38,6,38,20],[39,26,39,27],[40,0,40,23],[40,26,40,27],[41,0,41,23],[42,0,44,1],[42,2,44,15],[42,16,44,23],[42,24,44,28],[32,0,32,7],[32,8,32,10],[32,11,32,20],[32,21,33,24],[32,25,33,28],[20,0,21,6],[21,12,21,16],[21,17,21,20],[21,21,21,23],[31,25,31,28],[24,5,24,28],[25,0,25,28],[28,11,29,21],[28,24,29,24],[28,25,29,28],[29,0,31,7],[30,11,30,21],[30,25,30,28],[31,8,31,10],[31,21,31,24],[22,0,22,6],[17,0,17,1],[17,2,17,8],[17,9,17,28],[18,0,18,28],[19,0,19,6],[22,12,22,16],[22,17,22,20],[22,21,22,23],[23,0,23,6],[23,12,23,16],[23,17,23,20],[23,21,23,23],[7,25,7,26],[7,27,7,28],[8,12,8,19],[9,6,9,20],[9,21,10,28],[10,6,10,20],[11,26,11,27],[12,0,12,23],[12,26,12,27],[13,0,13,23],[14,0,16,1],[14,2,16,15],[14,16,16,23],[14,24,16,28],[6,21,6,24],[0,11,1,21],[0,24,1,24],[0,25,1,28],[1,0,3,7],[2,11,2,21],[2,25,2,28],[3,8,3,10],[3,21,3,24],[3,25,3,28],[4,0,4,7],[4,8,4,10],[4,11,4,20],[4,21,5,24],[4,25,5,28]]}
[null,null,null,null,null,null,null,null,null,null,null,null,null,null,null,null,null,null,null,null,null,null,null,null,null,"Код формы документа по ОКУД"]
["Отдел инкассации             КИЦ \"Коломенский\" "]
[null,null,null,null,null,null,null,null,null,null,null,null,null,null,null,null,null,null,null,null,null,null,null,null,null,"`0402303"]
[null,null,null,null,null,null,null,null,"начальник отдела",null,null,null,null,null,null,null,null,null,null,null,null,"Волобуев Н.И.",null,null,null,"\"30\" июня 2014 г."]
["(наименование подразделения инкассации)",null,null,null,null,null,null,null,"(наименование должности)",null,null,"(личная подпись)",null,null,null,null,null,null,null,null,null,"(фамилия и инициалы)"]
[]
[null,null,null,null,null,null,null,null,null,null,null,null,null,null,null,null,null,null,null,null,null,"Место печати"]
[null,null,null,null,"ЯВОЧНАЯ    КАРТОЧКА    N",null,null,null,null,null,42735,"на июль 2014 года.",null,null,null,null,null,null,null,null,null,null,null,null,null,"ИНО",null,{"$f":"VLOOKUP($K$8,БАЗА!$B$5:$AO$16,8,0)","v":42735},null,null,1]
[null,null,null,null,null,null,null,null,null,null,null,null,"(месяц)"]
["№№ закрепленных сумок: ",null,null,null,null,null,{"$f":"VLOOKUP($K$8,БАЗА!$B$5:$AO$16,9,0)","v":13},null,null,null,null,null,null,null,null,null,null,null,null,null,null,"Выходные дни организации:  -"]
[null,null,null,null,null,null,"(указывается номер каждой сумки или с номера по номер)"]
[null,null," ",null,null,null,null,null,null,null,null,null,null,null,null,null,null,null,null,null,null,null,null,null,"Маршруты","Будни","Суббота",null,"Воскресенье"]
[{"$f":"VLOOKUP($K$8,БАЗА!$B$5:$AO$16,2,0)","v":"ЗАО \"Торговый дом \"ПЕРЕКРЕСТОК\" Маг №10"},null,null,null,null,null,null,null,null,null,null,null,null,null,null,null,null,null,null,null,null,null,null,null,"инкассации №",{"$f":"БАЗА!L5","v":208},{"$f":"БАЗА!M5","v":208},null,{"$f":"БАЗА!N5","v":208}]
["(наименование организации)"]
["Адрес: ",null,{"$f":"БАЗА!D5","v":" г. Коломна, ул. Фрунзе, д. 47"},null,null,null,null,null,null,null,null,null,null,null,null,null,"номер телефона:",null,null,null,null,null,null,null,{"$f":"БАЗА!E5","v":"8 964-775-89-56"}]
[]
[]
["Счет N",null,{"$f":"БАЗА!K5","v":"`40702810338040101099"}]
[]
["Время окончания работы ",null,null,null,null,null,null,{"$f":"БАЗА!AB5","v":22},"часов",{"$f":"БАЗА!AC5","v":"`00"},"минут"]
["Время заезда инкассаторских работников по будням"]
[null,null,null,null,null,null,null,{"$f":"БАЗА!P5","v":20},"часов",{"$f":"БАЗА!Q5","v":"`00"},"минут","__",{"$f":"БАЗА!R5","v":21},null,null,null,null,"часов",null,null,null,{"$f":"БАЗА!S5","v":"`00"},null,null,"минут"]
["Время заезда в Субботу",null,null,null,null,null,null,{"$f":"БАЗА!T5","v":19},"часов",{"$f":"БАЗА!U5","v":30},"минут","__",{"$f":"БАЗА!V5","v":20},null,null,null,null,"часов",null,null,null,{"$f":"БАЗА!W5","v":30},null,null,"минут"]
["Время заезда в Воскресенье",null,null,null,null,null,null,{"$f":"БАЗА!X5","v":19},"часов",{"$f":"БАЗА!Y5","v":30},"минут","__",{"$f":"БАЗА!Z5","v":20},null,null,null,null,"часов",null,null,null,{"$f":"БАЗА!AA5","v":30},null,null,"минут"]
["Способ обслуживания:",null,null,null,null,{"$f":"БАЗА!H5","v":"ежедневно"}]
["1. Если сумка с наличными деньгами не сдана инкассаторскому работнику или кассовый работник организации отказался сдавать сумку с наличными деньгами, кассовый работник организации ОБЯЗАН в явочной карточке в строке за эту дату произвести запись “Отказ” и заверить запись своей подписью.\n2. В случае внесения кассовым работником организации неправильной записи в явочную карточку указанная запись зачеркивается, на полях карточки проставляется новая запись, которая заверяется подписью кассового работника организации.\n3. Производить записи в явочной карточке инкассаторскому работнику запрещается.\n"]
[]
[]
[null,null,null,null,null,null,null,null,null,null,null,null,null,null,null,null,null,null,null,null,null,null,null,null,null,"Код формы документа по ОКУД"]
[{"$f":"A2","v":"Отдел инкассации             КИЦ \"Коломенский\" "}]
[null,null,null,null,null,null,null,null,null,null,null,null,null,null,null,null,null,null,null,null,null,null,null,null,null,"`0402303"]
[null,null,null,null,null,null,null,null,{"$f":"I4","v":"начальник отдела"},null,null,null,null,null,null,null,null,null,null,null,null,{"$f":"V4","v":"Волобуев Н.И."},null,null,null,{"$f":"Z4","v":"\"30\" июня 2014 г."}]
["(наименование подразделения инкассации)",null,null,null,null,null,null,null,"(наименование должности)",null,null,"(личная подпись)",null,null,null,null,null,null,null,null,null,"(фамилия и инициалы)"]
[]
[null,null,null,null,null,null,null,null,null,null,null,null,null,null,null,null,null,null,null,null,null,"Место печати"]
[null,null,null,null,"ЯВОЧНАЯ    КАРТОЧКА    N",null,null,null,null,null,{"$f":"K8","v":42735},{"$f":"L8","v":"на июль 2014 года."},null,null,null,null,null,null,null,null,null,null,null,null,null,"ИНО",null,{"$f":"AB8","v":42735},null,null,2]
[null,null,null,null,null,null,null,null,null,null,null,null,"(месяц)"]
["№№ закрепленных сумок: ",null,null,null,null,null,{"$f":"G10","v":13},null,null,null,null,null,null,null,null,null,null,null,null,null,null,"Выходные дни организации:  -"]
[null,null,null,null,null,null,"(указывается номер каждой сумки или с номера по номер)"]
[null,null," ",null,null,null,null,null,null,null,null,null,null,null,null,null,null,null,null,null,null,null,null,null,"Маршруты","Будни","Суббота",null,"Воскресенье"]
[{"$f":"A13","v":"ЗАО \"Торговый дом \"ПЕРЕКРЕСТОК\" Маг №10"},null,null,null,null,null,null,null,null,null,null,null,null,null,null,null,null,null,null,null,null,null,null,null,"инкассации №",{"$f":"[1]СпОр!R6","v":213},{"$f":"[1]СпОр!S6","v":212},null,{"$f":"[1]СпОр!T6","v":211}]
["(наименование организации)"]
["Адрес: ",null,null,null,null,null,null,null,null,null,null,null,null,null,null,null,"номер телефона:"]
[]
[]
["Счет N",null,null,null,null,null,null,null,null,{"$f":"[1]СпОр!U6","v":"в ДО № 01764 Московского банка ОАО \"Сбербанк России\" "}]
[]
["Время окончания работы ",null,null,null,null,null,null,{"$f":"[1]СпОр!AH6","v":22},"часов",{"$f":"[1]СпОр!AI6","v":"`00"},"минут"]
["Время заезда инкассаторских работников по будням"]
[null,null,null,null,null,null,null,{"$f":"[1]СпОр!V6","v":17},"часов",{"$f":"[1]СпОр!W6","v":"`00"},"минут","__",{"$f":"[1]СпОр!X6","v":18},null,null,null,null,"часов",null,null,null,{"$f":"[1]СпОр!Y6","v":"`00"},null,null,"минут"]
["Время заезда в Субботу",null,null,null,null,null,null,{"$f":"[1]СпОр!Z6","v":16},"часов",{"$f":"[1]СпОр!AA6","v":30},"минут","__",{"$f":"[1]СпОр!AB6","v":17},null,null,null,null,"часов",null,null,null,{"$f":"[1]СпОр!AC6","v":30},null,null,"минут"]
["Время заезда в Воскресенье",null,null,null,null,null,null,{"$f":"[1]СпОр!AD6","v":16},"часов",{"$f":"[1]СпОр!AE6","v":"`00"},"минут","__",{"$f":"[1]СпОр!AF6","v":17},null,null,null,null,"часов",null,null,null,{"$f":"[1]СпОр!AG6","v":"`00"},null,null,"минут"]
["Способ обслуживания:",null,null,null,null,{"$f":"[1]СпОр!G6","v":"ежедневно"}]
["1. Если сумка с наличными деньгами не сдана инкассаторскому работнику или кассовый работник организации отказался сдавать сумку с наличными деньгами, кассовый работник организации ОБЯЗАН в явочной карточке в строке за эту дату произвести запись “Отказ” и заверить запись своей подписью.\n2. В случае внесения кассовым работником организации неправильной записи в явочную карточку указанная запись зачеркивается, на полях карточки проставляется новая запись, которая заверяется подписью кассового работника организации.\n3. Производить записи в явочной карточке инкассаторскому работнику запрещается.\n"]

{"sheet":"100","index":2,"n_rows":54,"n_cols":31,"rows_kept":54,"cut":false,"hidden":false,"merged":[[52,5,52,28],[53,0,53,28],[50,0,50,6],[50,12,50,16],[50,17,50,20],[50,21,50,23],[51,0,51,6],[51,12,51,16],[51,17,51,20],[51,21,51,23],[45,0,45,1],[45,2,45,8],[45,9,45,28],[46,0,46,28],[47,0,47,6],[48,0,49,6],[49,12,49,16],[49,17,49,20],[49,21,49,23],[39,26,39,27],[40,0,40,23],[40,26,40,27],[41,0,41,23],[42,0,44,1],[42,2,44,15],[42,16,44,23],[42,24,44,28],[34,21,34,24],[35,25,35,26],[35,27,35,28],[36,12,36,19],[37,6,37,20],[37,21,38,28],[38,6,38,20],[31,25,31,28],[32,0,32,7],[32,8,32,10],[32,11,32,20],[32,21,33,24],[32,25,33,28],[24,5,24,28],[25,0,25,28],[28,11,29,21],[28,24,29,24],[28,25,29,28],[29,0,31,7],[30,11,30,21],[30,25,30,28],[31,8,31,10],[31,21,31,24],[22,0,22,6],[22,12,22,16],[22,17,22,20],[22,21,22,23],[23,0,23,6],[23,12,23,16],[23,17,23,20],[23,21,23,23],[17,0,17,1],[17,2,17,8],[17,9,17,28],[18,0,18,28],[19,0,19,6],[20,0,21,6],[21,12,21,16],[21,17,21,20],[21,21,21,23],[11,26,11,27],[12,0,12,23],[12,26,12,27],[13,0,13,23],[14,0,16,1],[14,2,16,15],[14,16,16,23],[14,24,16,28],[7,25,7,26],[7,27,7,28],[8,12,8,19],[9,6,9,20],[9,21,10,28],[10,6,10,20],[4,0,4,7],[4,8,4,10],[4,11,4,20],[4,21,5,24],[4,25,5,28],[6,21,6,24],[0,11,1,21],[0,24,1,24],[0,25,1,28],[1,0,3,7],[2,11,2,21],[2,25,2,28],[3,8,3,10],[3,21,3,24],[3,25,3,28]]}
[null,null,null,null,null,null,null,null,null,null,null,null,null,null,null,null,null,null,null,null,null,null,null,null,null,"Код формы документа по ОКУД"]
["Отдел инкассации             КИЦ \"Коломенский\" "]
[null,null,null,null,null,null,null,null,null,null,null,null,null,null,null,null,null,null,null,null,null,null,null,null,null,"`0402303"]
[null,null,null,null,null,null,null,null,"начальник отдела",null,null,null,null,null,null,null,null,null,null,null,null,"Волобуев Н.И.",null,null,null,"\"30\" июня 2014 г."]
["(наименование подразделения инкассации)",null,null,null,null,null,null,null,"(наименование должности)",null,null,"(личная подпись)",null,null,null,null,null,null,null,null,null,"(фамилия и инициалы)"]
[]
[null,null,null,null,null,null,null,null,null,null,null,null,null,null,null,null,null,null,null,null,null,"Место печати"]
[null,null,null,null,"ЯВОЧНАЯ    КАРТОЧКА    N",null,null,null,null,null,42725,"на июль 2014 года.",null,null,null,null,null,null,null,null,null,null,null,null,null,"ИНО",null,{"$f":"VLOOKUP($K$8,БАЗА!$B$5:$AO$16,8,0)","v":42725},null,null,1]
[null,null,null,null,null,null,null,null,null,null,null,null,"(месяц)"]
["№№ закрепленных сумок: ",null,null,null,null,null,{"$f":"VLOOKUP($K$8,БАЗА!$B$5:$AO$16,9,0)","v":"одноразовые средства упаковки"},null,null,null,null,null,null,null,null,null,null,null,null,null,null,"Выходные дни организации:  -"]
[null,null,null,null,null,null,"(указывается номер каждой сумки или с номера по номер)"]
[null,null," ",null,null,null,null,null,null,null,null,null,null,null,null,null,null,null,null,null,null,null,null,null,"Маршруты","Будни","Суббота",null,"Воскресенье"]
[{"$f":"VLOOKUP($K$8,БАЗА!$B$5:$AO$16,2,0)","v":"ЗАО \"Торговый дом \"ПЕРЕКРЕСТОК\" Маг"},null,null,null,null,null,null,null,null,null,null,null,null,null,null,null,null,null,null,null,null,null,null,null,"инкассации №",{"$f":"БАЗА!L5","v":208},{"$f":"БАЗА!M5","v":208},null,{"$f":"БАЗА!N5","v":208}]
["(наименование организации)"]
["Адрес: ",null,{"$f":"БАЗА!D5","v":" г. Коломна, ул. Фрунзе, д. 47"},null,null,null,null,null,null,null,null,null,null,null,null,null,"номер телефона:",null,null,null,null,null,null,null,{"$f":"БАЗА!E5","v":"8 964-775-89-56"}]
[]
[]
["Счет N",null,{"$f":"БАЗА!K5","v":"`40702810338040101099"}]
[]
["Время окончания работы ",null,null,null,null,null,null,{"$f":"БАЗА!AB5","v":22},"часов",{"$f":"БАЗА!AC5","v":"`00"},"минут"]
["Время заезда инкассаторских работников по будням"]
[null,null,null,null,null,null,null,{"$f":"БАЗА!P5","v":20},"часов",{"$f":"БАЗА!Q5","v":"`00"},"минут","__",{"$f":"БАЗА!R5","v":21},null,null,null,null,"часов",null,null,null,{"$f":"БАЗА!S5","v":"`00"},null,null,"минут"]
["Время заезда в Субботу",null,null,null,null,null,null,{"$f":"БАЗА!T5","v":19},"часов",{"$f":"БАЗА!U5","v":30},"минут","__",{"$f":"БАЗА!V5","v":20},null,null,null,null,"часов",null,null,null,{"$f":"БАЗА!W5","v":30},null,null,"минут"]
["Время заезда в Воскресенье",null,null,null,null,null,null,{"$f":"БАЗА!X5","v":19},"часов",{"$f":"БАЗА!Y5","v":30},"минут","__",{"$f":"БАЗА!Z5","v":20},null,null,null,null,"часов",null,null,null,{"$f":"БАЗА!AA5","v":30},null,null,"минут"]
["Способ обслуживания:",null,null,null,null,{"$f":"БАЗА!H5","v":"ежедневно"}]
["1. Если сумка с наличными деньгами не сдана инкассаторскому работнику или кассовый работник организации отказался сдавать сумку с наличными деньгами, кассовый работник организации ОБЯЗАН в явочной карточке в строке за эту дату произвести запись “Отказ” и заверить запись своей подписью.\n2. В случае внесения кассовым работником организации неправильной записи в явочную карточку указанная запись зачеркивается, на полях карточки проставляется новая запись, которая заверяется подписью кассового работника организации.\n3. Производить записи в явочной карточке инкассаторскому работнику запрещается.\n"]
[]
[]
[null,null,null,null,null,null,null,null,null,null,null,null,null,null,null,null,null,null,null,null,null,null,null,null,null,"Код формы документа по ОКУД"]
[{"$f":"A2","v":"Отдел инкассации             КИЦ \"Коломенский\" "}]
[null,null,null,null,null,null,null,null,null,null,null,null,null,null,null,null,null,null,null,null,null,null,null,null,null,"`0402303"]
[null,null,null,null,null,null,null,null,{"$f":"I4","v":"начальник отдела"},null,null,null,null,null,null,null,null,null,null,null,null,{"$f":"V4","v":"Волобуев Н.И."},null,null,null,{"$f":"Z4","v":"\"30\" июня 2014 г."}]
["(наименование подразделения инкассации)",null,null,null,null,null,null,null,"(наименование должности)",null,null,"(личная подпись)",null,null,null,null,null,null,null,null,null,"(фамилия и инициалы)"]
[]
[null,null,null,null,null,null,null,null,null,null,null,null,null,null,null,null,null,null,null,null,null,"Место печати"]
[null,null,null,null,"ЯВОЧНАЯ    КАРТОЧКА    N",null,null,null,null,null,{"$f":"K8","v":42725},{"$f":"L8","v":"на июль 2014 года."},null,null,null,null,null,null,null,null,null,null,null,null,null,"ИНО",null,{"$f":"AB8","v":42725},null,null,2]
[null,null,null,null,null,null,null,null,null,null,null,null,"(месяц)"]
["№№ закрепленных сумок: ",null,null,null,null,null,{"$f":"G10","v":"одноразовые средства упаковки"},null,null,null,null,null,null,null,null,null,null,null,null,null,null,"Выходные дни организации:  -"]
[null,null,null,null,null,null,"(указывается номер каждой сумки или с номера по номер)"]
[null,null," ",null,null,null,null,null,null,null,null,null,null,null,null,null,null,null,null,null,null,null,null,null,"Маршруты","Будни","Суббота",null,"Воскресенье"]
[{"$f":"A13","v":"ЗАО \"Торговый дом \"ПЕРЕКРЕСТОК\" Маг"},null,null,null,null,null,null,null,null,null,null,null,null,null,null,null,null,null,null,null,null,null,null,null,"инкассации №",{"$f":"[1]СпОр!R6","v":213},{"$f":"[1]СпОр!S6","v":212},null,{"$f":"[1]СпОр!T6","v":211}]
["(наименование организации)"]
["Адрес: ",null,null,null,null,null,null,null,null,null,null,null,null,null,null,null,"номер телефона:"]
[]
[]
["Счет N",null,null,null,null,null,null,null,null,{"$f":"[1]СпОр!U6","v":"в ДО № 01764 Московского банка ОАО \"Сбербанк России\" "}]
[]
["Время окончания работы ",null,null,null,null,null,null,{"$f":"[1]СпОр!AH6","v":22},"часов",{"$f":"[1]СпОр!AI6","v":"`00"},"минут"]
["Время заезда инкассаторских работников по будням"]
[null,null,null,null,null,null,null,{"$f":"[1]СпОр!V6","v":17},"часов",{"$f":"[1]СпОр!W6","v":"`00"},"минут","__",{"$f":"[1]СпОр!X6","v":18},null,null,null,null,"часов",null,null,null,{"$f":"[1]СпОр!Y6","v":"`00"},null,null,"минут"]
["Время заезда в Субботу",null,null,null,null,null,null,{"$f":"[1]СпОр!Z6","v":16},"часов",{"$f":"[1]СпОр!AA6","v":30},"минут","__",{"$f":"[1]СпОр!AB6","v":17},null,null,null,null,"часов",null,null,null,{"$f":"[1]СпОр!AC6","v":30},null,null,"минут"]
["Время заезда в Воскресенье",null,null,null,null,null,null,{"$f":"[1]СпОр!AD6","v":16},"часов",{"$f":"[1]СпОр!AE6","v":"`00"},"минут","__",{"$f":"[1]СпОр!AF6","v":17},null,null,null,null,"часов",null,null,null,{"$f":"[1]СпОр!AG6","v":"`00"},null,null,"минут"]
["Способ обслуживания:",null,null,null,null,{"$f":"[1]СпОр!G6","v":"ежедневно"}]
["1. Если сумка с наличными деньгами не сдана инкассаторскому работнику или кассовый работник организации отказался сдавать сумку с наличными деньгами, кассовый работник организации ОБЯЗАН в явочной карточке в строке за эту дату произвести запись “Отказ” и заверить запись своей подписью.\n2. В случае внесения кассовым работником организации неправильной записи в явочную карточку указанная запись зачеркивается, на полях карточки проставляется новая запись, которая заверяется подписью кассового работника организации.\n3. Производить записи в явочной карточке инкассаторскому работнику запрещается.\n"]